bitfinex-derivatives/quotes_SOLF0:USTF0_20250501
["timestamp","ask_amount","ask_price","bid_price","bid_amount"]
[1746099147464,6.5814,151.92,151.89,24.48]
[1746099148166,6.5821,151.91,151.89,24.48]
[1746099149067,6.5822,151.9,151.89,24.48]
[1746099149667,6.5822,151.9,151.89,29.47140105]
[1746099151069,6.582,151.91,151.89,29.47140105]
[1746099151571,6.5822,151.9,151.89,24.48]
[1746099152264,6.5828,151.89,151.86,24.46]
[1746099152869,6.5825,151.9,151.86,24.46]
[1746099153169,24.46,151.95,151.86,24.46]
[1746099153865,24.46,151.95,151.87,7.79890735]
[1746099154162,6.5818,151.92,151.88,6.5828]
[1746099154371,24.46,151.95,151.88,6.5828]
[1746099154769,6.5816,151.92,151.89,6.5826]
[1746099155771,6.5818,151.91,151.88,6.5829]
[1746099155974,24.46,151.95,151.87,7.79890735]
[1746099157669,24.46,151.95,151.88,6.5829]
[1746099158566,24.46,151.95,151.87,6.5833]
[1746099159068,6.5825,151.9,151.87,6.5833]
[1746099159466,24.46,151.95,151.87,6.5833]
[1746099159668,6.5831,151.89,151.86,31.0438]
[1746099160971,6.5832,151.88,151.86,24.46]
[1746099161471,24.46,151.95,151.86,24.46]
[1746099161972,6.5827,151.9,151.87,6.5835]
[1746099162173,24.46,151.95,151.87,6.5835]
[1746099163372,6.5826,151.9,151.87,6.5835]
[1746099163774,24.46,151.95,151.87,6.5835]
[1746099165172,6.5828,151.89,151.87,6.5835]
[1746099168277,6.5828,151.89,151.86,31.0438]
[1746099168477,6.5831,151.88,151.86,31.0438]
[1746099169179,6.5831,151.88,151.86,24.46]
[1746099169977,6.5835,151.87,151.86,24.46]
[1746099170476,6.5835,151.87,151.82,7.79890735]
[1746099170675,24.46,151.91,151.83,31.0452]
[1746099171182,6.5847,151.85,151.83,24.46]
[1746099171479,6.5847,151.85,151.83,29.45471997]
[1746099171676,6.5842,151.86,151.83,36.03981997]
[1746099172277,6.5845,151.85,151.83,29.45471997]
[1746099172578,31.43941997,151.91,151.83,29.45471997]
[1746099172779,6.5845,151.85,151.83,29.45471997]
[1746099172975,31.43941997,151.91,151.83,29.45471997]
[1746099173284,6.5848,151.84,151.83,29.45471997]
[1746099173483,6.5848,151.84,151.83,24.46]
[1746099173777,6.5848,151.84,151.81,6.5858]
[1746099174888,6.5856,151.83,151.8,31.0464]
[1746099176181,6.5851,151.84,151.8,31.0464]
[1746099176586,26.4447,151.91,151.8,31.0464]
[1746099177285,6.5852,151.84,151.81,6.5861]
[1746099177687,6.5852,151.84,151.8,24.46]
[1746099177986,6.5847,151.85,151.8,24.46]
[1746099178287,26.4447,151.91,151.81,6.5858]
[1746099178585,6.585,151.84,151.81,6.5858]
[1746099178779,26.4447,151.91,151.8,24.46]
[1746099179089,6.5847,151.85,151.8,24.46]
[1746099179387,26.4447,151.91,151.81,6.5858]
[1746099179688,6.5851,151.84,151.81,6.5858]
[1746099179878,26.4447,151.91,151.8,24.46]
[1746099180193,6.5848,151.85,151.82,6.5854]
[1746099181089,6.5841,151.86,151.8,24.46]
[1746099181478,6.5841,151.86,151.83,6.585]
[1746099181683,26.4447,151.91,151.8,24.46]
[1746099182392,6.5842,151.86,151.83,6.585]
[1746099183494,6.5845,151.85,151.82,6.5855]
[1746099184392,6.5849,151.84,151.81,6.5859]
[1746099184692,26.4447,151.91,151.8,24.46]
[1746099185495,6.585,151.84,151.8,24.46]
[1746099185980,6.585,151.84,151.81,6.5859]
[1746099186987,13.1648,151.9,151.8,24.46]
[1746099187192,24.44,151.89,151.8,24.46]
[1746099187496,6.5858,151.82,151.8,24.46]
[1746099188192,6.5861,151.81,151.8,24.46]
[1746099188700,6.5859,151.82,151.8,24.46]
[1746099188993,2.0976,151.87,151.78,6.5871]
[1746099189391,6.5864,151.81,151.78,6.5871]
[1746099190799,6.5864,151.81,151.77,36.9441]
[1746099190991,6.5864,151.81,151.77,30.3564]
[1746099191193,6.5859,151.82,151.77,30.3564]
[1746099191492,6.5859,151.82,151.78,6.5872]
[1746099192204,6.5862,151.81,151.78,6.5872]
[1746099192499,24.44,151.85,151.77,30.3564]
[1746099192696,6.5866,151.81,151.77,30.3564]
[1746099192895,24.44,151.85,151.77,36.9439]
[1746099193302,6.5864,151.81,151.77,30.3564]
[1746099193707,6.5864,151.81,151.78,6.5874]
[1746099193998,6.5864,151.81,151.77,30.3564]
[1746099194302,6.5864,151.81,151.77,36.9439]
[1746099194900,6.586,151.82,151.78,6.5872]
[1746099195100,24.44,151.85,151.77,30.3564]
[1746099195503,6.5856,151.83,151.79,11.58387958]
[1746099195702,6.5856,151.83,151.79,4.99727958]
[1746099196200,24.44,151.85,151.8,6.5864]
[1746099196500,6.585,151.84,151.79,4.99727958]
[1746099197095,6.585,151.84,151.8,6.5862]
[1746099197402,6.585,151.84,151.79,4.99727958]
[1746099197800,6.585,151.84,151.8,6.5863]
[1746099199206,6.5854,151.83,151.8,6.5863]
[1746099199596,24.44,151.85,151.79,11.58407958]
[1746099200106,6.5857,151.82,151.79,11.58407958]
[1746099200309,4.99727958,151.84,151.78,6.5872]
[1746099200702,6.5863,151.81,151.78,6.5872]
[1746099201602,6.5859,151.82,151.79,6.5869]
[1746099202311,6.5863,151.81,151.78,6.5872]
[1746099202805,6.5863,151.81,151.77,35.35367958]
[1746099202806,4.99727958,151.84,151.77,29.43727958]
[1746099203007,6.5867,151.8,151.77,36.02497958]
[1746099204109,6.5874,151.79,151.77,24.44]
[1746099206209,6.5874,151.79,151.77,31.0279]
[1746099206405,6.5868,151.8,151.77,24.44]
[1746099206916,6.5868,151.8,151.77,31.0277]
[1746099208512,6.5871,151.79,151.77,31.0277]
[1746099209211,6.5871,151.79,151.77,24.44]
[1746099209701,6.588,151.77,151.75,8.29987405]
[1746099209899,24.46,151.81,151.75,8.29987405]
[1746099210409,6.5883,151.76,151.75,8.29987405]
[1746099211111,6.5879,151.77,151.75,8.29987405]
[1746099211705,6.5883,151.76,151.75,8.29987405]
[1746099212011,24.46,151.81,151.75,8.29987405]
[1746099212508,6.5881,151.77,151.75,14.88857405]
[1746099212713,6.5881,151.77,151.75,8.29987405]
[1746099213312,6.5883,151.76,151.75,8.29987405]
[1746099219820,6.5892,151.74,151.73,2.77944993]
[1746099222821,6.5892,151.74,151.73,4.993e-05]
[1746099234328,6.5914,151.69,151.68,5.55968358]
[1746099256053,6.5911,151.7,151.68,5.55968358]
[1746099256250,24.44,151.73,151.68,5.55968358]
[1746099256449,24.44,151.73,151.69,6.5913]
[1746099256658,24.44,151.73,151.68,5.55968358]
[1746099257551,6.5907,151.71,151.68,12.15118358]
[1746099257853,24.44,151.73,151.68,5.55968358]
[1746099258547,6.5914,151.69,151.68,5.55968358]
[1746099263961,6.5911,151.7,151.68,5.55968358]
[1746099264260,24.44,151.73,151.68,5.55968358]
[1746099264463,6.5914,151.69,151.68,5.55968358]
[1746099265559,41.4399,151.76,151.68,5.55968358]
[1746099265760,37.5971,151.76,151.68,11.62838358]
[1746099266063,6.5911,151.7,151.68,11.62838358]
[1746099266262,6.5911,151.7,151.68,5.55968358]
[1746099267265,6.5911,151.7,151.68,12.15138358]
[1746099267764,6.5911,151.7,151.68,5.55968358]
[1746099267967,6.5914,151.69,151.68,5.55968358]
[1746099268162,37.5971,151.76,151.68,5.55968358]
[1746099268565,6.5912,151.7,151.68,5.55968358]
[1746099269865,6.5914,151.69,151.68,5.55968358]
[1746099278470,7.8200311,151.71,151.64,5.56497571]
[1746099278471,6.5931,151.65,151.64,5.56497571]
[1746099281673,6.5944,151.62,151.58,6.5958]
[1746099281966,6.5944,151.62,151.59,6.5957]
[1746099282773,6.5944,151.62,151.58,6.5959]
[1746099282975,6.5944,151.62,151.57,24.38]
[1746099283167,6.5944,151.62,151.57,30.9762]
[1746099283472,6.5954,151.6,151.57,30.9762]
[1746099283667,13.1782,151.75,151.58,7.8200311]
[1746099283975,7.8200311,151.73,151.58,7.8200311]
[1746099284176,7.8200311,151.73,151.66,6.5924]
[1746099284675,6.5914,151.69,151.66,6.5924]
[1746099284870,32.2000311,151.74,151.67,6.5921]
[1746099285178,6.5912,151.7,151.67,6.5921]
[1746099285879,6.5914,151.69,151.67,6.5921]
[1746099288280,6.5914,151.69,151.66,6.5925]
[1746099291081,6.5918,151.68,151.66,6.5925]
[1746099292083,6.5916,151.69,151.66,6.5925]
[1746099293087,6.5918,151.68,151.66,6.5925]
[1746099293683,6.5915,151.69,151.66,6.5925]
[1746099298186,6.5918,151.68,151.66,6.5925]
[1746099300287,6.5916,151.69,151.67,6.5921]
[1746099304083,24.32,151.76,151.64,32.2000311]
[1746099304284,11.8304311,151.8,151.67,7.8200311]
[1746099304486,1.21099911,151.78,151.68,30.3237]
[1746099304687,24.32,151.79,151.68,30.3237]
[1746099305492,6.5877,151.78,151.75,6.5884]
[1746099305689,24.32,151.79,151.75,6.5884]
[1746099305886,24.32,151.79,151.72,24.32]
[1746099306091,6.5879,151.77,151.74,6.5889]
[1746099306491,24.32,151.79,151.72,24.32]
[1746099306893,6.5881,151.77,151.74,6.5889]
[1746099307894,6.5877,151.78,151.75,6.5887]
[1746099308491,24.32,151.82,151.72,24.32]
[1746099308990,24.32,151.82,151.73,7.8200311]
[1746099309193,32.1400311,151.85,151.73,7.8200311]
[1746099309395,1.21047287,151.84,151.74,5.908]
[1746099309790,6.5867,151.8,151.74,5.908]
[1746099309990,32.1400311,151.85,151.74,5.908]
[1746099310191,6.5867,151.8,151.77,6.5876]
[1746099310791,6.5863,151.81,151.78,6.5873]
[1746099313799,6.5866,151.8,151.78,6.5873]
[1746099314496,32.1400311,151.85,151.78,6.5873]
[1746099314802,6.5863,151.81,151.78,6.5873]
[1746099315003,32.1400311,151.85,151.78,6.5873]
[1746099315295,6.5864,151.81,151.78,6.5873]
[1746099315500,32.1400311,151.85,151.78,6.5873]
[1746099316901,6.5866,151.8,151.78,6.5873]
[1746099317499,6.5866,151.8,151.76,24.32]
[1746099317500,6.5866,151.8,151.77,6.5876]
[1746099318601,6.5866,151.8,151.78,6.5874]
[1746099320205,6.5863,151.81,151.78,6.5874]
[1746099322005,6.5867,151.8,151.78,6.5874]
[1746099322505,24.32,151.85,151.79,6.5869]
[1746099322708,24.32,151.85,151.76,24.32]
[1746099323302,24.32,151.85,151.8,6.5863]
[1746099323605,6.5851,151.84,151.81,6.5859]
[1746099325907,6.5854,151.83,151.81,6.5859]
[1746099327118,6.586,151.82,151.8,24.32]
[1746099327408,30.5192,151.88,151.8,24.32]
[1746099327607,6.586,151.82,151.8,24.32]
[1746099329207,6.586,151.82,151.8,30.9065]
[1746099329403,30.5192,151.88,151.8,30.9065]
[1746099329605,6.5855,151.83,151.8,30.9065]
[1746099329805,30.5192,151.88,151.8,24.32]
[1746099330105,6.5859,151.82,151.8,24.32]
[1746099331904,30.5192,151.88,151.8,24.32]
[1746099332107,6.5861,151.81,151.8,24.32]
[1746099332403,7.8200311,151.86,151.8,24.32]
[1746099332601,6.5859,151.82,151.8,24.32]
[1746099333202,6.5859,151.82,151.8,30.9066]
[1746099334412,6.5859,151.82,151.8,24.32]
[1746099336200,6.5861,151.81,151.8,24.32]
[1746099337709,6.5859,151.82,151.8,30.9064]
[1746099338406,6.5859,151.82,151.8,24.32]
[1746099340408,6.5861,151.81,151.8,24.32]
[1746099342613,6.5859,151.82,151.8,30.9066]
[1746099348414,6.5861,151.81,151.8,24.32]
[1746099349811,6.586,151.82,151.8,24.32]
[1746099350217,4.99768826,151.85,151.8,24.32]
[1746099350916,6.5861,151.81,151.8,24.32]
[1746099354814,30.5192,151.88,151.78,4.99768826]
[1746099355121,4.99768826,151.81,151.77,24.26]
[1746099355504,6.588,151.77,151.75,6.5886]
[1746099355708,4.5472791,151.76,151.75,6.5886]
[1746099359318,4.5459767,151.76,151.75,6.5886]
[1746099360918,4.5459767,151.76,151.74,41.75468826]
[1746099361117,4.5459767,151.75,151.74,41.75468826]
[1746099364526,4.5459767,151.75,151.74,36.757]
[1746099364825,4.54597276,151.75,151.74,36.757]
[1746099365425,4.54597276,151.75,151.74,12.497]
[1746099365719,4.54597276,151.75,151.74,36.697]
[1746099370729,4.54597276,151.75,151.74,41.69468826]
[1746099372132,4.54443737,151.75,151.74,41.69468826]
[1746099372429,4.54443737,151.75,151.74,35.78668826]
[1746099375729,4.54112302,151.75,151.74,35.78668826]
[1746099379324,4.53837083,151.75,151.74,35.78668826]
[1746099380327,4.53837083,151.75,151.74,29.19768826]
[1746099380830,4.53837083,151.75,151.74,35.78688826]
[1746099382932,4.53718835,151.75,151.74,35.78688826]
[1746099383127,4.53718835,151.75,151.74,29.19768826]
[1746099383334,11.12588835,151.75,151.74,24.2]
[1746099384835,4.53718835,151.75,151.74,24.2]
[1746099385436,4.53718835,151.75,151.74,30.7892]
[1746099386532,4.53616603,151.75,151.74,30.7892]
[1746099388236,4.53664988,151.75,151.74,24.2]
[1746099389733,4.53664988,151.75,151.74,30.7892]
[1746099390529,4.99768826,151.8,151.75,6.5887]
[1746099390734,6.5878,151.78,151.75,6.5887]
[1746099390933,4.53784661,151.77,151.75,6.5887]
[1746099391335,4.53833044,151.76,151.75,6.5887]
[1746099392833,4.53910738,151.76,151.75,6.5887]
[1746099394643,4.54120716,151.76,151.75,6.5887]
[1746099397048,4.99768826,151.82,151.74,29.19768826]
[1746099397049,29.25768826,151.84,151.79,6.5867]
[1746099397240,4.5435783,151.83,151.79,6.5867]
[1746099397547,6.5859,151.82,151.79,6.5867]
[1746099398046,6.5859,151.82,151.78,29.15768826]
[1746099398047,6.5859,151.82,151.8,6.5865]
[1746099398243,6.5853,151.83,151.8,6.5865]
[1746099399435,4.99768826,151.85,151.78,29.15768826]
[1746099399750,4.99768826,151.83,151.78,29.15768826]
[1746099399936,6.5862,151.81,151.78,30.7472]
[1746099402048,6.5862,151.81,151.79,6.587]
[1746099404356,6.5867,151.8,151.78,30.7472]
[1746099404563,4.99768826,151.81,151.78,24.16]
[1746099404862,6.587,151.79,151.78,24.16]
[1746099405962,6.5868,151.8,151.78,24.16]
[1746099407160,6.5868,151.8,151.78,30.7473]
[1746099409070,4.29327636,151.79,151.78,30.7473]
[1746099410869,4.29327636,151.79,151.78,24.16]
[1746099411971,4.293648,151.79,151.78,24.16]
[1746099414375,4.29402452,151.79,151.78,24.16]
[1746099414771,4.29402452,151.79,151.78,30.7474]
[1746099414976,4.29402452,151.79,151.78,24.16]
[1746099416169,6.5868,151.8,151.78,24.16]
[1746099416368,4.294266,151.79,151.78,24.16]
[1746099417076,4.294266,151.79,151.78,30.7474]
[1746099418172,4.29439839,151.79,151.78,30.7474]
[1746099420673,9.29208665,151.79,151.71,1.14666052]
[1746099420874,4.99768826,151.73,151.68,17.34025697]
[1746099421072,4.99768826,151.69,151.65,93.07007095]
[1746099421273,4.99768826,151.67,151.65,93.07007095]
[1746099421476,4.29439839,151.66,151.65,93.07007095]
[1746099421675,4.29439839,151.66,151.65,99.66317095]
[1746099422576,1e-08,151.66,151.65,99.66317095]
[1746099422776,4.35873165,151.66,151.65,6.5931]
[1746099423174,35.72728826,151.73,151.67,6.5919]
[1746099423375,35.72728826,151.73,151.68,4.99768826]
[1746099423575,24.16,151.76,151.67,24.16]
[1746099424076,6.5892,151.74,151.67,24.16]
[1746099424482,6.5892,151.74,151.69,6.591]
[1746099425476,6.5892,151.74,151.7,6.5906]
[1746099427279,6.5892,151.74,151.71,6.5905]
[1746099427580,6.5889,151.75,151.71,6.5905]
[1746099427784,6.5889,151.75,151.72,6.5898]
[1746099427983,6.5889,151.75,151.67,24.16]
[1746099428375,6.5889,151.75,151.67,26.1394]
[1746099428579,6.5889,151.75,151.71,6.5901]
[1746099429282,6.5892,151.74,151.71,6.5901]
[1746099431087,6.5892,151.74,151.72,6.59]
[1746099432481,6.5892,151.74,151.71,6.5903]
[1746099433183,6.5892,151.74,151.72,6.59]
[1746099434682,6.5892,151.74,151.71,6.5903]
[1746099435189,4.08208357,151.73,151.71,6.5903]
[1746099435385,4.14274607,151.73,151.71,6.5903]
[1746099435782,4.14274607,151.72,151.71,6.5903]
[1746099443193,4.14274607,151.72,151.67,26.1394]
[1746099443386,4.14274607,151.72,151.63,1.9862]
[1746099443387,6.5921,151.68,151.58,23.03987232]
[1746099443589,7.81947232,151.66,151.54,16.37095737]
[1746099443793,4.07910714,151.65,151.54,24.19042969]
[1746099444097,4.07910714,151.64,151.55,28.1518]
[1746099444297,4.07910714,151.63,151.55,28.1518]
[1746099444503,4.14274607,151.62,151.59,6.5954]
[1746099444689,4.14274607,151.62,151.57,2.0284]
[1746099445198,6.5928,151.66,151.59,7.81947232]
[1746099445401,4.07522916,151.65,151.6,24.1]
[1746099445695,24.1,151.68,151.63,6.5938]
[1746099445900,4.64171809,151.67,151.63,6.5938]
[1746099446199,4.64171809,151.66,151.63,6.5938]
[1746099446400,4.64171809,151.65,151.63,6.5938]
[1746099446698,24.1,151.68,151.63,6.5938]
[1746099446899,4.37163563,151.67,151.64,6.5934]
[1746099447192,1.9461,151.71,151.64,24.1]
[1746099447403,4.37260295,151.7,151.68,6.5918]
[1746099447592,4.37346401,151.69,151.68,6.5918]
[1746099447793,4.37346401,151.69,151.65,2.0508]
[1746099447992,6.5905,151.71,151.65,2.0508]
[1746099448195,4.10390067,151.7,151.65,2.0508]
[1746099448398,4.10390067,151.69,151.66,1.9041]
[1746099448697,24.1,151.74,151.68,6.5916]
[1746099448900,4.10562035,151.73,151.68,6.5916]
[1746099449203,4.10562035,151.72,151.68,6.5916]
[1746099449402,4.10562035,151.71,151.68,6.5916]
[1746099449700,4.10562035,151.7,151.68,6.5916]
[1746099449901,4.10644787,151.69,151.68,6.5916]
[1746099450096,24.1,151.74,151.69,6.5912]
[1746099450298,4.10666331,151.73,151.69,6.5912]
[1746099450499,4.10666331,151.72,151.7,6.5906]
[1746099450698,4.10666331,151.71,151.7,6.5906]
[1746099450998,30.6894,151.74,151.68,24.1]
[1746099451306,4.10689883,151.73,151.7,6.5905]
[1746099451599,4.10713294,151.72,151.68,24.1]
[1746099451801,6.5894,151.74,151.7,6.5905]
[1746099452001,4.10755026,151.73,151.7,6.5905]
[1746099452201,6.5894,151.74,151.7,6.5905]
[1746099452402,4.10787932,151.73,151.7,6.5905]
[1746099452701,6.5894,151.74,151.7,6.5905]
[1746099452902,4.10831988,151.73,151.71,6.5902]
[1746099453102,6.5894,151.74,151.71,6.5902]
[1746099453298,4.10873276,151.73,151.68,26.1883]
[1746099453498,24.1,151.77,151.68,26.1883]
[1746099453698,4.10912001,151.76,151.68,26.1883]
[1746099453899,4.10912001,151.75,151.7,7.81947232]
[1746099454099,24.1,151.8,151.71,4.1354]
[1746099454301,4.10953088,151.79,151.72,24.1]
[1746099454499,10.69703088,151.78,151.72,24.1]
[1746099454801,4.10953088,151.77,151.74,6.5889]
[1746099454995,4.10953088,151.76,151.74,6.5889]
[1746099455199,4.10953088,151.75,151.74,6.5889]
[1746099455597,10.69743088,151.77,151.73,6.5894]
[1746099455803,4.10953088,151.76,151.72,24.1]
[1746099455999,4.11065816,151.75,151.72,24.1]
[1746099456195,6.5884,151.76,151.72,24.1]
[1746099456401,4.11117887,151.75,151.72,24.1]
[1746099456607,4.11148191,151.74,151.72,24.1]
[1746099456809,6.5887,151.76,151.72,30.6899]
[1746099457108,4.11148191,151.75,151.72,30.6899]
[1746099457308,6.5887,151.76,151.72,30.6899]
[1746099457504,14.77378774,151.75,151.72,30.6899]
[1746099457706,10.66174472,151.75,151.72,30.6899]
[1746099458503,4.07294472,151.74,151.72,30.6899]
[1746099458711,4.07294472,151.73,151.72,30.6899]
[1746099459110,4.07294472,151.74,151.72,24.1]
[1746099459505,4.07294472,151.73,151.72,24.1]
[1746099464218,8.19082614,151.73,151.72,24.1]
[1746099464512,14.78042614,151.73,151.72,24.1]
[1746099465017,14.78225343,151.73,151.72,24.1]
[1746099466527,14.78225343,151.73,151.71,2.0527]
[1746099466720,8.19265343,151.72,151.67,5.12886]
[1746099466919,4.1214413,151.71,151.67,5.12886]
[1746099467124,4.1214413,151.7,151.67,5.12886]
[1746099467421,8.19346452,151.69,151.67,5.12886]
[1746099467624,4.12030994,151.68,151.67,5.12886]
[1746099467925,10.66474472,151.68,151.67,5.12886]
[1746099468225,14.78431073,151.68,151.67,5.12886]
[1746099468627,15.35459085,151.68,151.67,5.12886]
[1746099470424,15.35348383,151.68,151.67,5.12886]
[1746099472128,15.3531786,151.68,151.67,5.12886]
[1746099473019,8.7613786,151.68,151.67,5.12886]
[1746099473221,8.7613786,151.68,151.67,29.18886]
[1746099473523,8.7613786,151.68,151.67,35.78106]
[1746099473827,1.9694,151.74,151.67,29.18886]
[1746099474124,6.5902,151.72,151.69,6.5911]
[1746099476425,6.5898,151.73,151.7,6.5906]
[1746099477430,6.5902,151.72,151.7,6.5906]
[1746099477621,35.94667232,151.78,151.7,6.5906]
[1746099477822,1.2110094,151.77,151.71,30.6505]
[1746099478022,35.94667232,151.78,151.71,30.6505]
[1746099478225,1.21100262,151.77,151.71,24.06]
[1746099479125,6.5899,151.73,151.71,24.06]
[1746099479426,1.21100262,151.77,151.71,24.06]
[1746099479427,35.94667232,151.78,151.71,24.06]
[1746099479732,1.21100803,151.77,151.71,24.06]
[1746099479935,28.1272,151.78,151.71,24.06]
[1746099480130,6.5895,151.74,151.72,6.59]
[1746099480332,6.5895,151.74,151.71,24.06]
[1746099480821,35.94667232,151.78,151.71,24.06]
[1746099481226,35.94667232,151.78,151.67,5.12886]
[1746099481227,7.81947232,151.75,151.67,5.12886]
[1746099481427,7.81947232,151.72,151.62,1.14703847]
[1746099481631,7.81947232,151.69,151.58,24.06]
[1746099481827,6.5934,151.65,151.62,6.5941]
[1746099482031,31.87947232,151.69,151.62,6.5941]
[1746099482531,6.5933,151.65,151.62,6.5941]
[1746099482733,24.06,151.69,151.59,9.82787232]
[1746099482934,24.06,151.69,151.6,1.9518]
[1746099483133,1.9719,151.71,151.6,1.9518]
[1746099483333,6.5919,151.68,151.64,6.5931]
[1746099483533,1.9719,151.71,151.64,30.6531]
[1746099483934,6.5923,151.67,151.64,30.6531]
[1746099484233,1.9719,151.71,151.64,24.06]
[1746099484536,6.5924,151.67,151.64,24.06]
[1746099485640,4.63377412,151.66,151.64,30.6533]
[1746099485832,4.63377412,151.65,151.64,30.6533]
[1746099490735,8.64516535,151.65,151.64,30.6533]
[1746099492135,8.64628542,151.65,151.64,30.6533]
[1746099493241,4.63489419,151.65,151.64,30.6533]
[1746099494342,8.64425553,151.65,151.64,30.6533]
[1746099494740,4.63489419,151.65,151.64,30.6533]
[1746099495545,8.6437307,151.65,151.64,30.6533]
[1746099495747,8.64078321,151.65,151.64,30.6533]
[1746099496551,4.6319467,151.65,151.64,30.6533]
[1746099497645,6.5918,151.68,151.65,6.5927]
[1746099497846,8.639077,151.67,151.65,6.5927]
[1746099498048,4.63123552,151.66,151.65,6.5927]
[1746099498249,8.639077,151.66,151.65,6.5927]
[1746099502749,8.64303026,151.66,151.65,6.5927]
[1746099502944,8.64303442,151.66,151.65,6.5927]
[1746099503144,8.643062,151.66,151.65,6.5927]
[1746099503843,8.643062,151.66,151.65,8.5931]
[1746099504643,4.63522052,151.66,151.65,8.5931]
[1746099504849,26.0303,151.75,151.65,2.0004]
[1746099505152,6.5903,151.72,151.66,2.002]
[1746099505448,4.01297674,151.74,151.68,6.5915]
[1746099505646,4.01297674,151.74,151.69,24.02]
[1746099505846,82.95112017,151.85,151.72,6.59]
[1746099505847,4.01297674,151.73,151.72,6.59]
[1746099506046,4.01297674,151.73,151.69,24.02]
[1746099506549,7.82230348,151.8,151.71,6.5903]
[1746099506550,4.01297674,151.72,151.71,6.5903]
[1746099506749,4.01297674,151.72,151.69,24.02]
[1746099506952,4.01297674,151.71,151.69,24.02]
[1746099507346,13.1742,151.79,151.69,24.02]
[1746099507542,1.21097742,151.78,151.69,24.02]
[1746099507749,31.84230348,151.77,151.69,24.02]
[1746099508156,6.5909,151.7,151.69,24.02]
[1746099508351,10.60581078,151.7,151.69,24.02]
[1746099509357,10.60581078,151.7,151.67,6.592]
[1746099509548,10.60581078,151.7,151.67,30.612]
[1746099509748,4.01491078,151.69,151.67,30.612]
[1746099510055,4.01491078,151.68,151.67,30.612]
[1746099513751,4.01491078,151.68,151.66,6.5925]
[1746099514054,4.01491078,151.68,151.66,30.6125]
[1746099514254,4.01491078,151.67,151.66,30.6125]
[1746099516756,8.55100065,151.67,151.66,30.6125]
[1746099522658,6.5927,151.66,151.61,1.14749233]
[1746099522862,8.55100065,151.65,151.62,23.98]
[1746099523162,4.53540135,151.64,151.62,23.98]
[1746099523363,4.53540135,151.63,151.62,30.5744]
[1746099523557,8.55031213,151.63,151.62,30.5744]
[1746099524764,6.5924,151.67,151.64,6.5932]
[1746099525361,6.592,151.68,151.65,6.5931]
[1746099525868,6.5916,151.69,151.66,6.5926]
[1746099529780,24.02,151.73,151.63,7.82230348]
[1746099530380,24.02,151.73,151.67,6.592]
[1746099530381,6.5911,151.7,151.67,6.592]
[1746099534686,6.5914,151.69,151.67,6.592]
[1746099535284,24.02,151.73,151.66,30.5725]
[1746099535486,24.02,151.73,151.66,23.98]
[1746099535786,6.592,151.68,151.66,30.5726]
[1746099536586,4.43522888,151.67,151.66,30.5726]
[1746099536786,8.771069,151.67,151.66,30.5726]
[1746099537487,8.77046429,151.67,151.66,30.5726]
[1746099538590,8.77046429,151.67,151.66,23.98]
[1746099539191,15.36266429,151.67,151.66,23.98]
[1746099541590,8.77046429,151.67,151.66,23.98]
[1746099542293,8.77046429,151.67,151.66,30.5727]
[1746099543593,8.77206325,151.67,151.66,30.5727]
[1746099544396,8.77157532,151.67,151.66,30.5727]
[1746099544799,8.77149997,151.67,151.66,30.5727]
[1746099548203,834.64736403,151.79,151.66,23.98]
[1746099548501,7.19254344,151.78,151.66,23.98]
[1746099548702,6.5899,151.73,151.66,23.98]
[1746099548896,5.9816,151.78,151.66,23.98]
[1746099549098,1.21108228,151.77,151.66,23.98]
[1746099549302,6.5902,151.72,151.69,6.5911]